fUSD/lending_fUSD_20250106
["ID","MTS","AMOUNT","RATE_DAILY","PERIOD"]
[347877468,1736178636415,-500.0,9.899e-05,2]
[347877469,1736178636424,-500.0,9.899e-05,2]
[347877470,1736178636433,-500.0,9.899e-05,2]
[347877471,1736178636444,-500.0,9.899e-05,2]
[347877472,1736178636454,-501.21178256,9.899e-05,2]
[347877473,1736178636463,-500.0,9.899e-05,2]
[347877474,1736178636474,-501.44987183,9.899e-05,2]
[347877475,1736178636484,-500.88144391,9.899e-05,2]
[347877476,1736178636494,-500.0,9.899e-05,2]
[347877477,1736178636503,-500.0,9.899e-05,2]
[347877478,1736178636513,-500.0,9.899e-05,2]
[347877479,1736178636524,-500.0,9.899e-05,2]
[347877480,1736178636534,-500.0,9.899e-05,2]
[347877481,1736178636544,-500.0,9.899e-05,2]
[347877482,1736178636554,-500.66146786,9.899e-05,2]
[347877483,1736178636563,-500.0,9.899e-05,2]
[347877484,1736178636573,-500.0,9.899e-05,2]
[347877485,1736178636583,-500.0,9.899e-05,2]
[347877486,1736178636592,-501.82421517,9.899e-05,2]
[347877487,1736178636601,-502.37412349,9.899e-05,2]
[347877488,1736178636611,-500.0,9.899e-05,2]
[347877489,1736178636621,-500.0,9.899e-05,2]
[347877490,1736178636631,-500.0,9.899e-05,2]
[347877491,1736178636640,-501.86175476,9.899e-05,2]
[347877492,1736178636650,-500.33990254,9.899e-05,2]
[347877493,1736178636660,-500.0,9.899e-05,2]
[347877494,1736178636669,-500.0,9.899e-05,2]
[347877495,1736178636679,-500.0,9.899e-05,2]
[347877496,1736178636688,-500.0,9.899e-05,2]
[347877497,1736178636697,-500.52105268,9.899e-05,2]
[347877498,1736178636707,-500.0,9.899e-05,2]
[347877499,1736178636717,-500.0,9.899e-05,2]
[347877500,1736178636727,-500.0,9.899e-05,2]
[347877501,1736178636737,-500.0,9.899e-05,2]
[347877502,1736178636747,-500.0,9.899e-05,2]
[347877503,1736178636761,-500.0,9.899e-05,2]
[347877504,1736178636770,-500.0,9.899e-05,2]
[347877505,1736178636782,-500.98656812,9.899e-05,2]
[347877506,1736178636791,-500.0,9.899e-05,2]
[347877507,1736178636801,-501.71125236,9.899e-05,2]
[347877508,1736178636811,-500.55308979,9.899e-05,2]
[347877509,1736178636820,-500.0,9.899e-05,2]
[347877510,1736178636831,-500.62233214,9.899e-05,2]
[347877511,1736178636840,-500.0,9.899e-05,2]
[347877512,1736178636850,-500.0,9.899e-05,2]
[347877513,1736178636859,-501.03585908,9.899e-05,2]
[347877514,1736178636869,-501.14792852,9.899e-05,2]
[347877515,1736178636878,-503.78860199,9.899e-05,2]
[347877516,1736178636887,-268.9,9.899e-05,2]
[347877517,1736178636897,-501.04485815,9.899e-05,2]
[347877518,1736178636906,-500.12452107,9.899e-05,2]
[347877519,1736178636917,-535.97,9.899e-05,2]
[347877520,1736178636926,-1011.65,9.899e-05,2]
[347877521,1736178636936,-504.26288533,9.899e-05,2]
[347877522,1736178636945,-500.0,9.899e-05,2]
[347877523,1736178636954,-500.0,9.899e-05,2]
[347877524,1736178636964,-502.72407658,9.899e-05,2]
[347877525,1736178636973,-500.0,9.899e-05,2]
[347877526,1736178636982,-500.0,9.899e-05,2]
[347877527,1736178636992,-500.0,9.899e-05,2]
[347877528,1736178637001,-500.0,9.899e-05,2]
[347877529,1736178637011,-500.0,9.899e-05,2]
[347877530,1736178637020,-500.0,9.899e-05,2]
[347877531,1736178637030,-500.0,9.899e-05,2]
[347877532,1736178637040,-572.57824423,9.899e-05,2]
[347877533,1736178637050,-500.0,9.899e-05,2]
[347877534,1736178637059,-500.0,9.899e-05,2]
[347877535,1736178637068,-502.94473442,9.899e-05,2]
[347877536,1736178637078,-501.07789821,9.899e-05,2]
[347877537,1736178637088,-500.49829762,9.899e-05,2]
[347877538,1736178637097,-504.08117937,9.899e-05,2]
[347877539,1736178637107,-500.0,9.899e-05,2]
[347877540,1736178637115,-500.46353589,9.899e-05,2]
[347877541,1736178637124,-500.0,9.899e-05,2]
[347877542,1736178637134,-500.59320966,9.899e-05,2]
[347877543,1736178637145,-500.0,9.899e-05,2]
[347877544,1736178637154,-500.0,9.899e-05,2]
[347877545,1736178637164,-500.72478975,9.899e-05,2]
[347877546,1736178637173,-500.63555834,9.899e-05,2]
[347877547,1736178637183,-500.0,9.899e-05,2]
[347877548,1736178637192,-500.0,9.899e-05,2]
[347877549,1736178637202,-652.92,9.899e-05,2]
[347877550,1736178637212,-500.0,9.899e-05,2]
[347877551,1736178637221,-500.0,9.899e-05,2]
[347877552,1736178637231,-496.03928489,9.899e-05,2]
[347877553,1736178637245,-500.0,9.899e-05,2]
[347877554,1736178637255,-500.0,9.899e-05,2]
[347877555,1736178637264,-500.0,9.899e-05,2]
[347877556,1736178637274,-500.0,9.899e-05,2]
[347877557,1736178637283,-500.0,9.899e-05,2]
[347877558,1736178637293,-500.0,9.899e-05,2]
[347877559,1736178637303,-500.8119209,9.899e-05,2]
[347877560,1736178637312,-500.0,9.899e-05,2]
[347877561,1736178637322,-500.0,9.899e-05,2]
[347877562,1736178637332,-1464.07,9.899e-05,2]
[347877563,1736178637341,-500.0,9.899e-05,2]
[347877564,1736178637350,-500.0,9.899e-05,2]
[347877565,1736178637360,-500.0,9.899e-05,2]
[347877566,1736178637369,-500.0,9.899e-05,2]
[347877567,1736178637379,-500.0,9.899e-05,2]
[347877568,1736178637388,-500.0,9.899e-05,2]
[347877569,1736178637398,-500.0,9.899e-05,2]
[347877570,1736178637407,-500.0,9.899e-05,2]
[347877571,1736178637417,-500.0,9.899e-05,2]
[347877572,1736178637427,-500.0,9.899e-05,2]
[347877573,1736178637436,-500.0,9.899e-05,2]
[347877574,1736178637446,-500.0,9.899e-05,2]
[347877575,1736178637456,-500.0,9.899e-05,2]
[347877576,1736178637465,-500.0,9.899e-05,2]
[347877577,1736178637475,-500.37222965,9.899e-05,2]
[347877578,1736178637485,-500.0,9.899e-05,2]
[347877579,1736178637668,-500.0,9.899e-05,2]
[347877580,1736178637679,-500.62307411,9.899e-05,2]
[347877581,1736178637689,-772.4,9.899e-05,2]
[347877582,1736178637699,-500.0,9.899e-05,2]
[347877583,1736178637709,-501.55820804,9.899e-05,2]
[347877584,1736178637719,-501.48089528,9.899e-05,2]
[347877585,1736178637728,-500.0,9.899e-05,2]
[347877586,1736178637738,-500.0,9.899e-05,2]
[347877587,1736178637748,-500.0,9.899e-05,2]
[347877588,1736178637758,-500.78555782,9.899e-05,2]
[347877589,1736178637767,-500.0,9.899e-05,2]
[347877590,1736178637783,-500.0,9.899e-05,2]
[347877591,1736178637792,-500.0,9.899e-05,2]
[347877592,1736178637802,-502.40176421,9.899e-05,2]
[347877593,1736178637811,-500.0,9.899e-05,2]
[347877594,1736178637820,-500.0,9.899e-05,2]
[347877595,1736178637830,-500.0,9.899e-05,2]
[347877596,1736178637839,-500.0,9.899e-05,2]
[347877597,1736178637850,-500.32714515,9.899e-05,2]
[347877598,1736178637860,-500.0,9.899e-05,2]
[347877601,1736178637869,-500.0,9.899e-05,2]
[347877603,1736178637879,-500.0,9.899e-05,2]
[347877606,1736178637888,-390.28,9.899e-05,2]
[347877607,1736178637898,-502.02814917,9.899e-05,2]
[347877608,1736178637907,-496.85433125,9.899e-05,2]
[347877609,1736178637916,-500.0,9.899e-05,2]
[347877610,1736178637926,-500.0,9.899e-05,2]
[347877612,1736178637935,-500.83336607,9.899e-05,2]
[347877613,1736178637944,-445.85384434,9.899e-05,2]
[347877615,1736178637954,-500.0,9.899e-05,2]
[347877617,1736178637964,-500.0,9.899e-05,2]
[347877619,1736178637973,-500.0,9.899e-05,2]
[347877620,1736178637982,-500.43711958,9.899e-05,2]
[347877621,1736178637992,-500.0,9.899e-05,2]
[347877622,1736178638001,-500.0,9.899e-05,2]
[347877623,1736178638011,-500.0,9.899e-05,2]
[347877624,1736178638021,-500.0,9.899e-05,2]
[347877625,1736178638033,-500.0,9.899e-05,2]
[347877626,1736178638043,-500.0,9.899e-05,2]
[347877627,1736178638053,-500.0,9.899e-05,2]
[347877628,1736178638063,-500.78446986,9.899e-05,2]
[347877629,1736178638072,-500.0,9.899e-05,2]
[347877630,1736178638082,-501.60327089,9.899e-05,2]
[347877631,1736178638091,-500.0,9.899e-05,2]
[347877632,1736178638100,-500.0,9.899e-05,2]
[347877633,1736178638110,-500.89400238,9.899e-05,2]
[347877634,1736178638120,-500.0,9.899e-05,2]
[347877635,1736178638129,-500.58859942,9.899e-05,2]
[347877636,1736178638139,-500.0,9.899e-05,2]
[347877637,1736178638149,-500.0,9.899e-05,2]
[347877638,1736178638159,-500.0,9.899e-05,2]
[347877639,1736178638168,-444.08128443,9.899e-05,2]
[347877640,1736178638178,-500.0,9.899e-05,2]
[347877641,1736178638188,-500.40893615,9.899e-05,2]
[347877642,1736178638198,-500.0,9.899e-05,2]
[347877643,1736178638207,-500.53065654,9.899e-05,2]
[347877644,1736178638217,-500.37884033,9.899e-05,2]
[347877645,1736178638227,-500.0,9.899e-05,2]
[347877646,1736178638236,-500.565385,9.899e-05,2]
[347877647,1736178638247,-500.0,9.899e-05,2]
[347877648,1736178638256,-631.14322312,9.899e-05,2]
[347877649,1736178638266,-500.62792667,9.899e-05,2]
[347877650,1736178638278,-500.0,9.899e-05,2]
[347877651,1736178638288,-500.0,9.899e-05,2]
[347877652,1736178638298,-500.49552679,9.899e-05,2]
[347877653,1736178638308,-500.0,9.899e-05,2]
[347877654,1736178638318,-500.0,9.899e-05,2]
[347877655,1736178638328,-501.04769171,9.899e-05,2]
[347877656,1736178638338,-500.0,9.899e-05,2]
[347877657,1736178638348,-500.73003907,9.899e-05,2]
[347877658,1736178638358,-501.29017768,9.899e-05,2]
[347877659,1736178638367,-632.43177483,9.899e-05,2]
[347877660,1736178638377,-500.0,9.899e-05,2]
[347877661,1736178638387,-500.41805174,9.899e-05,2]
[347877662,1736178638397,-500.0,9.899e-05,2]
[347877663,1736178638406,-500.0,9.899e-05,2]
[347877664,1736178638415,-500.0,9.899e-05,2]
[347877665,1736178638425,-500.0,9.899e-05,2]
[347877666,1736178638435,-500.0,9.899e-05,2]
[347877667,1736178638445,-500.0,9.899e-05,2]
[347877668,1736178638455,-500.0,9.899e-05,2]
[347877669,1736178638464,-500.0,9.899e-05,2]
[347877670,1736178638474,-500.0,9.899e-05,2]
[347877672,1736178638484,-500.0,9.899e-05,2]
[347877674,1736178638494,-500.0,9.899e-05,2]
[347877676,1736178638504,-501.06486039,9.899e-05,2]
[347877678,1736178638513,-153456.7537,9.9e-05,2]
[347877680,1736178638522,-5000.0,9.9e-05,2]
[347877681,1736178638532,-608.94923988,9.921e-05,2]
[347877683,1736178638541,-500.98880062,9.973e-05,2]
[347877685,1736178638551,-500.0,9.973e-05,2]
[347877687,1736178638560,-151.771848,9.973e-05,2]
[347877689,1736178638569,-500.0,9.973e-05,2]
[347877691,1736178638578,-151.78937741,9.973e-05,2]
[347877693,1736178638587,-498.6986,9.973e-05,2]
[347877695,1736178638596,-407.537472,9.997e-05,2]
[347877697,1736178638605,-157.634331,9.997e-05,2]
[347877700,1736178638617,-156.428393,9.997e-05,2]
[347877703,1736178638628,-1549.26,9.997e-05,2]
[347877705,1736178638637,-605.109896,9.997e-05,2]
[347877707,1736178638646,-500.0,9.997e-05,2]
[347877709,1736178638656,-500.0,9.997e-05,2]
[347877711,1736178638665,-644.4,9.997e-05,2]
[347877713,1736178638674,-500.0,9.997e-05,2]
[347877715,1736178638683,-1235.24,9.997e-05,2]
[347877717,1736178638693,-500.0,9.997e-05,2]
[347877719,1736178638702,-500.0,9.997e-05,2]
[347877721,1736178638711,-500.0,9.997e-05,2]
[347877723,1736178638721,-500.0,9.997e-05,2]
[347877725,1736178638731,-500.0,9.997e-05,2]
[347877727,1736178638740,-500.0,9.998e-05,2]
[347877729,1736178638749,-500.0,9.998e-05,2]
[347877731,1736178638758,-500.0,9.998e-05,2]
[347877733,1736178638768,-407.537472,9.998e-05,2]
[347877735,1736178638780,-1305.15,9.998e-05,2]
[347877737,1736178638790,-500.0,9.998e-05,2]
[347877739,1736178638799,-500.0,9.998e-05,2]
[347877741,1736178638808,-605.109896,9.998e-05,2]
[347877743,1736178638818,-500.0,9.998e-05,2]
[347877745,1736178638828,-500.0,9.998e-05,2]
[347877747,1736178638837,-500.0,9.998e-05,2]
[347877749,1736178638848,-500.0,9.998e-05,2]
[347877751,1736178638857,-990.35,9.998e-05,2]
[347877754,1736178638867,-639.36,9.998e-05,2]
[347877756,1736178638877,-500.0,9.998e-05,2]
[347877757,1736178638886,-500.0,9.998e-05,2]
[347877760,1736178638896,-500.0,9.998e-05,2]
[347877762,1736178638905,-1555.97,9.998e-05,2]
[347877764,1736178638914,-500.0,9.998e-05,2]
[347877766,1736178638925,-2479.94,9.998e-05,2]
[347877768,1736178638934,-500.0,9.999e-05,2]
[347877770,1736178638943,-501.85269262,9.999e-05,2]
[347877772,1736178638953,-500.28128623,9.999e-05,2]
[347877774,1736178638962,-500.96580597,9.999e-05,2]
[347877776,1736178638971,-504.26840815,9.999e-05,2]
[347877778,1736178638981,-500.27018052,9.999e-05,2]
[347877780,1736178638990,-314.29316386,9.999e-05,2]
[347877782,1736178638999,-500.72453981,9.999e-05,2]
[347877784,1736178639008,-500.47844472,9.999e-05,2]
[347877786,1736178639019,-500.0,9.999e-05,2]
[347877787,1736178639030,-500.0,9.999e-05,2]
[347877790,1736178639042,-501.63746904,9.999e-05,2]
[347877792,1736178639051,-500.98172357,9.999e-05,2]
[347877793,1736178639061,-500.0,9.999e-05,2]
[347877795,1736178639070,-500.0,9.999e-05,2]
[347877797,1736178639079,-500.0,9.999e-05,2]
[347877799,1736178639089,-500.0,9.999e-05,2]
[347877801,1736178639098,-500.0,9.999e-05,2]
[347877804,1736178639108,-500.0,9.999e-05,2]
[347877805,1736178639117,-500.0,9.999e-05,2]
[347877808,1736178639128,-500.0,9.999e-05,2]
[347877810,1736178639138,-500.0,9.999e-05,2]
[347877812,1736178639149,-500.0,9.999e-05,2]
[347877814,1736178639158,-500.0,9.999e-05,2]
[347877816,1736178639167,-500.0,9.999e-05,2]
[347877818,1736178639177,-573.3360591,9.999e-05,2]
[347877820,1736178639187,-500.0,9.999e-05,2]
[347877822,1736178639196,-500.0,9.999e-05,2]
[347877824,1736178639206,-500.0,9.999e-05,2]
[347877826,1736178639216,-500.0,9.999e-05,2]
[347877827,1736178639227,-500.0,9.999e-05,2]
[347877828,1736178639236,-500.0,9.999e-05,2]
[347877829,1736178639245,-500.0,9.999e-05,2]
[347877830,1736178639253,-500.0,9.999e-05,2]
[347877831,1736178639262,-500.0,9.999e-05,2]
[347877832,1736178639272,-500.0,9.999e-05,2]
[347877833,1736178639283,-500.0,9.999e-05,2]
[347877834,1736178639294,-500.0,9.999e-05,2]
[347877836,1736178639303,-500.0,9.999e-05,2]
[347877838,1736178639313,-500.0,9.999e-05,2]
[347877840,1736178639322,-500.0,9.999e-05,2]
[347877842,1736178639332,-500.0,9.999e-05,2]
[347877844,1736178639342,-500.0,9.999e-05,2]
[347877846,1736178639352,-500.0,9.999e-05,2]
[347877848,1736178639362,-500.0,9.999e-05,2]
[347877850,1736178639372,-500.0,9.999e-05,2]
[347877852,1736178639382,-475.83947211,9.999e-05,2]
[347877854,1736178639391,-500.0,9.999e-05,2]
[347877856,1736178639401,-500.0,9.999e-05,2]
[347877858,1736178639410,-500.0,9.999e-05,2]
[347877860,1736178639419,-500.44417772,9.999e-05,2]
[347877862,1736178639429,-500.0,9.999e-05,2]
[347877864,1736178639438,-500.0,9.999e-05,2]
[347877866,1736178639448,-500.0,9.999e-05,2]
[347877868,1736178639457,-500.0,9.999e-05,2]
[347877870,1736178639467,-500.0,9.999e-05,2]
[347877872,1736178639477,-500.0,9.999e-05,2]
[347877874,1736178639487,-500.0,9.999e-05,2]
[347877877,1736178639497,-500.0,9.999e-05,2]
[347877878,1736178639506,-500.0,9.999e-05,2]
[347877880,1736178639515,-500.0,9.999e-05,2]
[347877883,1736178639527,-500.0,9.999e-05,2]
[347877885,1736178639536,-500.31145207,9.999e-05,2]
[347877886,1736178639546,-503.35668402,9.999e-05,2]
[347877889,1736178639555,-500.0,9.999e-05,2]
[347877891,1736178639565,-500.0,9.999e-05,2]
[347877893,1736178639575,-500.0,9.999e-05,2]
[347877895,1736178639584,-500.0,9.999e-05,2]
[347877897,1736178639593,-500.0,9.999e-05,2]
[347877898,1736178639602,-500.0,9.999e-05,2]
[347877900,1736178639613,-630.86,9.999e-05,2]
[347877902,1736178639624,-500.0,9.999e-05,2]
[347877904,1736178639634,-501.73024803,9.999e-05,2]
[347877907,1736178639643,-500.0,9.999e-05,2]
[347877909,1736178639653,-501.7988762,9.999e-05,2]
[347877911,1736178639663,-500.0,9.999e-05,2]
[347877912,1736178639672,-500.0,9.999e-05,2]
[347877914,1736178639682,-530.92500671,9.999e-05,2]
[347877916,1736178639692,-500.0,9.999e-05,2]
[347877919,1736178639702,-500.0,9.999e-05,2]
[347877920,1736178639711,-500.0,9.999e-05,2]
[347877922,1736178639721,-500.0,9.999e-05,2]
[347877925,1736178639731,-500.0,9.999e-05,2]
[347877927,1736178639740,-500.0,9.999e-05,2]
[347877929,1736178639749,-500.0,9.999e-05,2]
[347877931,1736178639759,-501.05913023,9.999e-05,2]
[347877933,1736178639769,-500.0,9.999e-05,2]
[347877934,1736178639781,-500.0,9.999e-05,2]
[347877936,1736178639795,-500.0,9.999e-05,2]
[347877938,1736178639805,-500.0,9.999e-05,2]
[347877940,1736178639814,-500.0,9.999e-05,2]
[347877943,1736178639824,-500.0,9.999e-05,2]
[347877945,1736178639834,-500.0,9.999e-05,2]
[347877946,1736178639844,-500.0,9.999e-05,2]
[347877949,1736178639855,-500.0,9.999e-05,2]
[347877951,1736178639864,-500.0,9.999e-05,2]
[347877954,1736178639874,-500.0,9.999e-05,2]
[347877955,1736178639884,-500.0,9.999e-05,2]
[347877958,1736178639894,-500.0,9.999e-05,2]
[347877959,1736178639903,-500.0,9.999e-05,2]
[347877962,1736178639913,-500.0,9.999e-05,2]
[347877963,1736178639923,-500.0,9.999e-05,2]
[347877965,1736178639932,-587.98191459,9.999e-05,2]
[347877967,1736178639942,-546.55990623,9.999e-05,2]
[347877969,1736178639951,-504.25552189,9.999e-05,2]
[347877972,1736178639961,-500.0,9.999e-05,2]
[347877974,1736178639970,-500.0,9.999e-05,2]
[347877976,1736178639980,-500.0,9.999e-05,2]
[347877978,1736178639989,-500.0,9.999e-05,2]
[347877980,1736178639999,-500.0,9.999e-05,2]
[347877982,1736178640008,-505.15826485,9.999e-05,2]
[347877984,1736178640017,-500.0,9.999e-05,2]
[347877986,1736178640030,-501.10648504,9.999e-05,2]
[347877988,1736178640040,-502.00332804,9.999e-05,2]
[347877994,1736178640091,-500.0,9.999e-05,2]
[347877996,1736178640101,-500.0,9.999e-05,2]
[347877998,1736178640110,-502.94429785,9.999e-05,2]
[347878000,1736178640120,-500.0,9.999e-05,2]
[347878003,1736178640129,-500.0,9.999e-05,2]
[347878006,1736178640139,-500.0,9.999e-05,2]
[347878009,1736178640149,-500.0,9.999e-05,2]
[347878011,1736178640158,-500.0,9.999e-05,2]
[347878013,1736178640167,-500.0,9.999e-05,2]
[347878015,1736178640176,-500.0,9.999e-05,2]
[347878017,1736178640186,-500.0,9.999e-05,2]
[347878019,1736178640196,-500.0,9.999e-05,2]
[347878021,1736178640206,-500.0,9.999e-05,2]
[347878023,1736178640216,-500.0,9.999e-05,2]
[347878025,1736178640225,-500.0,9.999e-05,2]
[347878027,1736178640234,-500.0,9.999e-05,2]
[347878029,1736178640244,-500.0,9.999e-05,2]
[347878031,1736178640253,-500.0,9.999e-05,2]
[347878033,1736178640262,-500.0,9.999e-05,2]
[347878035,1736178640272,-500.0,9.999e-05,2]
[347878037,1736178640285,-500.0,9.999e-05,2]
[347878039,1736178640295,-500.0,9.999e-05,2]
[347878041,1736178640304,-500.0,9.999e-05,2]
[347878043,1736178640314,-500.0,9.999e-05,2]
[347878045,1736178640325,-500.0,9.999e-05,2]
[347878047,1736178640335,-502.58282037,9.999e-05,2]
[347878048,1736178640345,-500.0,9.999e-05,2]
[347878049,1736178640355,-509.4179875,9.999e-05,2]
[347878050,1736178640365,-500.0,9.999e-05,2]
[347878051,1736178640374,-501.9708039,9.999e-05,2]
[347878052,1736178640384,-500.0,9.999e-05,2]
[347878053,1736178640394,-500.0,9.999e-05,2]
[347878055,1736178640404,-500.0,9.999e-05,2]
[347878057,1736178640413,-500.0,9.999e-05,2]
[347878058,1736178640423,-500.0,9.999e-05,2]
[347878060,1736178640432,-500.0,9.999e-05,2]
[347878062,1736178640442,-500.0,9.999e-05,2]
[347878064,1736178640451,-500.0,9.999e-05,2]
[347878066,1736178640460,-500.0,9.999e-05,2]
[347878068,1736178640469,-500.0,9.999e-05,2]
[347878070,1736178640480,-494.0,9.999e-05,2]
[347878072,1736178640489,-500.0,9.999e-05,2]
[347878074,1736178640499,-500.0,9.999e-05,2]
[347878076,1736178640507,-500.0,9.999e-05,2]
[347878078,1736178640517,-500.0,9.999e-05,2]
[347878080,1736178640530,-500.0,9.999e-05,2]
[347878082,1736178640539,-502.47876464,9.999e-05,2]
[347878084,1736178640549,-500.0,9.999e-05,2]
[347878086,1736178640558,-500.0,9.999e-05,2]
[347878088,1736178640567,-500.0,9.999e-05,2]
[347878090,1736178640576,-500.0,9.999e-05,2]
[347878092,1736178640586,-500.0,9.999e-05,2]
[347878094,1736178640595,-500.0,9.999e-05,2]
[347878096,1736178640605,-500.0,9.999e-05,2]
[347878098,1736178640614,-442.05269109,9.999e-05,2]
[347878100,1736178640624,-500.0,9.999e-05,2]
[347878102,1736178640634,-500.0,9.999e-05,2]
[347878104,1736178640644,-500.0,9.999e-05,2]
[347878106,1736178640653,-500.0,9.999e-05,2]
[347878108,1736178640662,-500.0,9.999e-05,2]
[347878110,1736178640672,-500.0,9.999e-05,2]
[347878112,1736178640682,-500.0,9.999e-05,2]
[347878114,1736178640691,-500.0,9.999e-05,2]
[347878116,1736178640701,-1922.29,9.999e-05,2]
[347878118,1736178640710,-500.0,9.999e-05,2]
[347878120,1736178640719,-500.0,9.999e-05,2]
[347878122,1736178640728,-500.0,9.999e-05,2]
[347878124,1736178640738,-500.0,9.999e-05,2]
[347878126,1736178640748,-500.0,9.999e-05,2]
[347878128,1736178640758,-500.0,9.999e-05,2]
[347878130,1736178640769,-505.88239731,9.999e-05,2]
[347878132,1736178640785,-500.0,9.999e-05,2]
[347878134,1736178640794,-500.0,9.999e-05,2]
[347878136,1736178640804,-500.0,9.999e-05,2]
[347878138,1736178640814,-500.0,9.999e-05,2]
[347878140,1736178640823,-500.0,9.999e-05,2]
[347878142,1736178640833,-500.0,9.999e-05,2]
[347878144,1736178640842,-500.0,9.999e-05,2]
[347878146,1736178640852,-500.0,9.999e-05,2]
[347878148,1736178640861,-605.44218953,9.999e-05,2]
[347878150,1736178640870,-195.79310342,9.999e-05,2]
[347878151,1736178640879,-503.23682538,9.999e-05,2]
[347878153,1736178640889,-562.10325223,9.999e-05,2]
[347878155,1736178640898,-500.0,9.999e-05,2]
[347878156,1736178640907,-806.17,9.999e-05,2]
[347878158,1736178640916,-500.0,9.999e-05,2]
[347878159,1736178640926,-500.0,9.999e-05,2]
[347878161,1736178640935,-215.95,9.999e-05,2]
[347878162,1736178640944,-500.0,9.999e-05,2]
[347878164,1736178640953,-316.77482383,9.999e-05,2]
[347878165,1736178640963,-1340.16,9.999e-05,2]
[347878167,1736178640972,-434.54261585,9.999e-05,2]
[347878168,1736178640981,-500.0,9.999e-05,2]
[347878170,1736178640991,-500.0,9.999e-05,2]
[347878172,1736178641000,-765.01867337,0.0001,2]
[347878188,1736178641247,-41146.53556079,0.0001,2]
[347878190,1736178641259,-614.72573488,0.0001,2]
[347878192,1736178641271,-1087.6709102,0.0001,2]
[347878196,1736178641323,-4862.004,0.0001,2]
[347878198,1736178641335,-1460.139699,0.0001,2]
[347878200,1736178641346,-4529.603981,0.0001,2]
[347878202,1736178641357,-18751.1573742,0.0001,2]
[347878204,1736178641369,-38588.96264084,0.0001,2]
[347878205,1736178641380,-266915.36856045,0.0001,2]
[347878207,1736178641391,-457.32324151,0.0001,2]
[347878209,1736178641402,-61868.38639997,0.0001,2]
[347878211,1736178641414,-6347.521058,0.0001,2]
[347878213,1736178641439,-80353.65920883,0.0001,2]
[347878215,1736178641451,-807.70277775,0.0001,2]
[347878270,1736178642164,-1303.9467317,8.98e-05,2]
[347878273,1736178642174,-500.0,9.899e-05,2]
[347878275,1736178642184,-441.23252965,9.899e-05,2]
[347878277,1736178642193,-500.0,9.899e-05,2]
[347878279,1736178642203,-500.0,9.899e-05,2]
[347878281,1736178642212,-21409.43481769,0.0001,2]
[347878283,1736178642224,-31237.260537,0.0001,2]
[347878286,1736178642242,-7771.62024578,0.0001,2]
[347878289,1736178642259,-1771.28400005,0.0001,2]
[347878291,1736178642271,-943.616,0.0001,2]
[347878293,1736178642284,-3123.54115014,0.0001,2]
[347878296,1736178642296,-4999.9999995,0.0001,2]
[347878298,1736178642308,-1991.92206004,0.0001,2]
[347878304,1736178642358,-5104.188,0.0001,2]
[347878307,1736178642371,-6649.14999878,0.0001,2]
[347878309,1736178642383,-275038.06607964,0.0001,2]
[347878311,1736178642395,-3799.93045815,0.0001,2]
[347878314,1736178642407,-2682.394968,0.0001,2]
[347878316,1736178642419,-70749.63070153,0.0001,2]
[347878319,1736178642440,-30393.38929202,0.0001,2]
[347878335,1736178642581,-623.59526803,9.899e-05,2]
[347878337,1736178642590,-18085.1411334,0.0001,2]
[347878339,1736178642606,-297.04429955,0.0001,2]
[347878341,1736178642620,-518.424,0.0001,2]
[347878344,1736178642640,-36873.1574577,0.0001,2]
[347878346,1736178642651,-6535.06181227,0.0001,2]
[347878348,1736178642663,-2034.52399846,0.0001,2]
[347878353,1736178642701,-257669.98487958,0.0001,2]
[347878355,1736178642713,-75159.53447529,0.0001,2]
[347878358,1736178642724,-25820.6240994,0.0001,2]
[347878360,1736178642735,-114765.9934315,0.0001,2]
[347878362,1736178642747,-862.3159344,0.0001,2]
[347878364,1736178642758,-982.45049282,0.0001,2]
[347878367,1736178642771,-328.05823,0.0001,2]
[347878369,1736178642786,-17754.94105895,0.0001,2]
[347878371,1736178642797,-23862.09118534,0.0001,2]